bitfinex-derivatives/quotes_SOLF0:USTF0_20241217
["timestamp","ask_amount","ask_price","bid_price","bid_amount"]
[1734430480971,5.38346927,223.07,222.97,5.4612]
[1734430481173,2.2419,223.06,222.99,2.2425]
[1734430481366,5.38346927,223.07,222.99,2.2425]
[1734430482482,2.2417,223.08,223.0,10.64271844]
[1734430482676,10.64271844,223.13,223.0,10.64271844]
[1734430482868,2.34,223.17,222.97,5.4612]
[1734430482869,10.64271844,223.16,223.03,10.64271844]
[1734430483071,2.34,223.17,223.04,3.8626]
[1734430483072,10.64271844,223.13,223.04,3.8626]
[1734430483277,10.64271844,223.05,222.86,12.37]
[1734430483472,10.64271844,222.98,222.89,1.5]
[1734430483977,2.2433,222.92,222.89,1.5]
[1734430484879,2.2434,222.91,222.89,1.5]
[1734430485686,2.2429,222.96,222.89,1.5]
[1734430485870,10.64271844,222.98,222.89,1.5]
[1734430486071,19.3550243,222.99,222.89,1.5]
[1734430487284,2.2434,222.9,222.89,1.5]
[1734430488376,2.34,222.94,222.89,1.5]
[1734430489481,2.34,222.94,222.87,1.539]
[1734430490276,2.34,222.94,222.86,12.37]
[1734430490481,2.2437,222.87,222.86,12.37]
[1734430492973,2.2437,222.87,222.86,15.95]
[1734430493178,2.2446,222.79,222.7,5.27877095]
[1734430493372,2.34,222.82,222.71,1.502]
[1734430493978,2.2448,222.77,222.71,1.502]
[1734430494484,2.2448,222.77,222.75,17.75]
[1734430495079,2.2449,222.76,222.75,17.75]
[1734430496677,2.2444,222.81,222.75,17.75]
[1734430496884,19.3550243,222.83,222.75,17.75]
[1734430497383,5.37555272,222.86,222.75,17.75]
[1734430497685,2.34,222.89,222.76,4.5706]
[1734430497874,2.34,222.88,222.76,4.5706]
[1734430498380,17.0150243,222.91,222.76,4.5706]
[1734430498381,2.34,222.98,222.84,17.0150243]
[1734430498578,2.34,223.0,222.85,2.34]
[1734430498774,2.34,223.0,222.86,1.5614]
[1734430498975,2.34,223.0,222.86,3.1113]
[1734430499180,17.0150243,223.02,222.87,1.5089]
[1734430499382,17.0150243,223.08,222.88,17.0150243]
[1734430499679,2.34,223.07,222.94,2.243]
[1734430499983,5.47410762,223.04,222.94,4.583]
[1734430500185,7.71620762,223.04,222.95,2.2429]
[1734430500387,2.2421,223.04,222.95,2.2429]
[1734430500579,2.34,223.06,222.96,1.5499]
[1734430500883,2.242,223.05,222.96,1.5499]
[1734430501078,2.34,223.06,222.9,2.34]
[1734430501383,17.0150243,223.04,222.9,2.34]
[1734430502577,2.34,223.03,222.9,2.34]
[1734430503475,2.2426,222.99,222.9,2.34]
[1734430504185,2.2426,222.99,222.9,4.5834]
[1734430504381,248.00979016,223.29,222.98,17.0150243]
[1734430504576,248.00979016,223.29,222.89,56.69838136]
[1734430504577,11.96240278,223.26,223.02,17.0150243]
[1734430504781,17.0150243,223.22,223.03,2.34]
[1734430504985,19.3550243,223.22,223.05,2.2419]
[1734430505380,2.2408,223.16,223.07,2.2417]
[1734430505684,2.34,223.21,223.08,2.34]
[1734430505881,2.34,223.21,223.09,2.34]
[1734430506085,2.2407,223.17,223.1,3.8348]
[1734430506282,2.34,223.21,223.1,3.8348]
[1734430506988,2.2411,223.14,223.1,3.8348]
[1734430507183,5.26807285,223.18,223.1,3.8348]
[1734430507383,19.3550243,223.22,223.1,3.8348]
[1734430507581,19.3550243,223.22,223.11,1.4562]
[1734430508076,2.2406,223.19,223.11,1.4562]
[1734430509386,2.2404,223.21,223.11,1.4562]
[1734430509589,2.2404,223.21,223.12,1.5502]
[1734430509781,19.3550243,223.22,223.12,1.5502]
[1734430509985,2.2405,223.19,223.12,1.5502]
[1734430511787,2.2405,223.19,223.13,3.29]
[1734430512188,5.32399666,223.21,223.13,3.29]
[1734430512783,2.42,223.2,223.13,3.29]
[1734430512988,2.241,223.15,223.13,3.29]
[1734430514884,2.241,223.14,223.13,3.29]
[1734430517492,19.4350243,223.14,223.04,1.4602]
[1734430517686,2.42,223.14,223.13,3.58]
[1734430517892,2.42,223.14,222.95,2.42]
[1734430517893,19.4350243,223.14,222.95,2.42]
[1734430518087,2.2423,223.02,222.95,2.42]
[1734430518289,2.42,223.09,222.95,2.42]
[1734430518695,2.42,223.09,222.99,2.2425]
[1734430518898,2.42,223.09,223.0,2.42]
[1734430519193,2.2419,223.06,223.0,6.0]
[1734430519788,2.2417,223.08,223.0,6.0]
[1734430520088,2.42,223.15,223.01,2.9823]
[1734430520293,2.42,223.15,223.01,19.9973243]
[1734430520594,2.42,223.15,223.03,2.242]
[1734430520991,2.42,223.15,223.0,3.58]
[1734430520992,17.0150243,223.06,223.0,3.58]
[1734430521188,17.0150243,223.02,222.82,21.4425243]
[1734430521389,17.0150243,222.98,222.83,2.42]
[1734430521594,2.2434,222.91,222.84,2.42]
[1734430521796,17.0150243,222.98,222.84,7.79567205]
[1734430522197,17.0150243,222.94,222.84,2.42]
[1734430522393,17.0150243,222.89,222.85,3.58]
[1734430522892,2.2438,222.86,222.85,3.58]
[1734430523896,2.42,222.9,222.85,3.58]
[1734430523897,2.2435,222.9,222.85,3.58]
[1734430524092,2.42,222.92,222.85,3.58]
[1734430524496,2.42,222.92,222.85,9.91]
[1734430524697,2.2436,222.89,222.85,16.44]
[1734430524892,2.42,222.92,222.85,16.44]
[1734430525791,2.2435,222.9,222.85,16.44]
[1734430525992,17.0150243,222.89,222.85,16.44]
[1734430526394,2.2438,222.87,222.85,16.44]
[1734430526690,4.6638,222.87,222.85,16.44]
[1734430527792,2.42,222.87,222.65,17.0150243]
[1734430527997,2.245,222.75,222.67,2.2457]
[1734430528302,17.0150243,222.79,222.66,1.576]
[1734430528597,19.4350243,222.79,222.66,1.576]
[1734430528994,5.41516902,222.93,222.73,3.59]
[1734430529198,5.41516902,222.93,222.75,17.0150243]
[1734430529393,5.41516902,222.93,222.76,2.42]
[1734430529595,2.2436,222.89,222.8,2.2444]
[1734430529795,2.2436,222.89,222.81,4.0051]
[1734430530002,5.41516902,222.93,222.81,4.0051]
[1734430531404,17.0150243,222.98,222.81,4.0051]
[1734430531699,2.243,222.95,222.85,2.2439]
[1734430531900,2.243,222.95,222.86,3.9253]
[1734430532101,2.243,222.95,222.87,2.42]
[1734430532302,2.243,222.95,222.87,3.9378]
[1734430532498,2.2429,222.96,222.87,6.1815]
[1734430532702,27.64700852,223.0,222.87,3.9378]
[1734430534002,27.64700852,223.04,222.87,3.9378]
[1734430534696,2.2423,223.02,222.92,2.2432]
[1734430535001,2.2423,223.02,222.87,3.9378]
[1734430535002,27.64700852,223.04,222.87,1.5178]
[1734430535203,27.64700852,223.04,222.88,2.42]
[1734430535400,27.64700852,222.95,222.87,1.5178]
[1734430535597,27.64700852,222.95,222.86,1.5053]
[1734430536300,2.42,222.96,222.87,2.42]
[1734430536698,2.2428,222.97,222.87,4.6637]
[1734430536898,2.2428,222.97,222.87,2.42]
[1734430537093,27.64700852,223.03,222.87,2.42]
[1734430537303,2.2426,222.99,222.87,4.6637]
[1734430537499,27.64700852,223.03,222.87,4.6637]
[1734430538104,2.2429,222.96,222.88,2.2436]
[1734430538403,27.64700852,223.03,222.89,4.0042]
[1734430538599,2.2426,222.99,222.89,4.0042]
[1734430538805,27.64700852,223.03,222.89,4.0042]
[1734430538999,27.64700852,222.99,222.89,1.5842]
[1734430539205,2.2431,222.93,222.89,4.0042]
[1734430539393,27.64700852,222.95,222.86,1.5053]
[1734430541002,2.2437,222.88,222.86,1.5053]
[1734430541507,2.2435,222.9,222.86,1.5053]
[1734430542101,2.46,222.94,222.83,2.42]
[1734430542307,27.64700852,222.91,222.82,2.46]
[1734430542605,27.64700852,222.87,222.78,1.4924]
[1734430543401,2.244,222.85,222.78,1.4924]
[1734430543605,27.64700852,222.87,222.78,1.4924]
[1734430544503,2.2445,222.8,222.78,1.4924]
[1734430544909,2.2445,222.8,222.74,1.4862]
[1734430545105,2.2445,222.8,222.74,3.9462]
[1734430545511,2.2446,222.79,222.74,3.9462]
[1734430545900,27.64700852,222.83,222.74,3.9462]
[1734430546103,2.2447,222.78,222.74,1.4862]
[1734430547005,2.2447,222.78,222.72,6.12]
[1734430547211,2.2447,222.78,222.68,3.0528]
[1734430547212,2.2447,222.78,222.69,2.46]
[1734430548202,2.2447,222.78,222.77,13.22309]
[1734430549008,30.10700852,222.83,222.77,13.22309]
[1734430549204,2.46,222.83,222.77,13.22309]
[1734430550216,2.46,222.83,222.78,3.59]
[1734430551910,2.2443,222.82,222.78,3.59]
[1734430552112,17.03178268,222.88,222.78,3.59]
[1734430552315,5.43740374,222.91,222.79,3.9099]
[1734430552513,2.2437,222.88,222.79,5.4098]
[1734430552813,7.89740374,222.91,222.82,2.2442]
[1734430553212,2.2436,222.88,222.8,1.4422]
[1734430553713,7.89740374,222.91,222.8,1.4422]
[1734430554109,2.2436,222.89,222.81,2.2444]
[1734430554312,7.89740374,222.91,222.8,1.4422]
[1734430554710,2.2436,222.89,222.83,2.2441]
[1734430554908,2.46,222.95,222.83,2.46]
[1734430555117,17.03178268,223.03,222.83,2.46]
[1734430555318,19.49178268,223.03,222.83,2.46]
[1734430555516,17.03178268,222.99,222.84,2.46]
[1734430555717,5.48496973,222.98,222.84,2.46]
[1734430555919,2.2435,222.9,222.84,2.46]
[1734430556508,2.2433,222.92,222.84,2.46]
[1734430556715,7.94496973,222.98,222.84,2.46]
[1734430557115,2.2431,222.93,222.87,2.2437]
[1734430557312,2.2431,222.93,222.84,2.46]
[1734430557817,2.2433,222.92,222.86,2.2438]
[1734430558519,17.03178268,223.03,222.84,19.49178268]
[1734430558717,17.03178268,223.03,222.91,2.2433]
[1734430558915,17.03178268,223.03,222.92,2.46]
[1734430559108,2.2425,223.0,222.92,2.46]
[1734430559417,17.03178268,223.03,222.92,2.46]
[1734430559622,17.03178268,223.03,222.93,1.4726]
[1734430559814,2.2426,222.99,222.93,5.2046]
[1734430560020,17.03178268,223.03,222.93,5.2046]
[1734430560215,5.47873844,223.01,222.93,2.9615]
[1734430560419,2.2427,222.98,222.93,2.9615]
[1734430561017,2.46,223.06,222.93,2.9615]
[1734430561222,19.49178268,223.07,222.93,4.5314]
[1734430561615,17.03178268,222.99,222.87,2.46]
[1734430562020,2.2433,222.92,222.87,2.46]
[1734430562723,2.2433,222.91,222.87,2.46]
[1734430562925,17.03178268,222.99,222.87,2.46]
[1734430563425,2.2428,222.97,222.9,2.2434]
[1734430563722,2.2428,222.97,222.87,2.46]
[1734430563930,19.49178268,223.03,222.87,2.46]
[1734430564129,2.2427,222.98,222.87,2.46]
[1734430564622,2.2427,222.98,222.92,2.2432]
[1734430564822,2.2427,222.98,222.93,2.46]
[1734430565026,2.2429,222.96,222.93,2.46]
[1734430565324,19.49178268,223.03,222.89,2.2435]
[1734430565527,19.49178268,223.03,222.84,4.4506]
[1734430565725,19.49178268,223.03,222.86,17.03178268]
[1734430565921,19.49178268,223.03,222.92,2.2432]
[1734430565922,2.46,223.03,222.92,2.2432]
[1734430566123,2.46,223.03,222.93,2.46]
[1734430566326,2.2427,222.98,222.93,2.46]
[1734430566529,2.46,223.03,222.93,2.46]
[1734430567023,5.36025594,223.04,222.93,2.46]
[1734430567420,5.36025594,223.04,222.94,1.4765]
[1734430567629,2.2424,223.01,222.95,2.2429]
[1734430568032,5.36025594,223.04,222.95,2.2429]
[1734430568332,2.2425,223.0,222.95,2.2429]
[1734430569728,2.2424,223.01,222.96,2.2428]
[1734430569929,17.03178268,223.07,222.95,3.1496]
[1734430570329,5.39884377,223.06,222.95,3.1496]
[1734430570530,2.46,223.05,222.91,2.46]
[1734430570732,17.03178268,223.0,222.86,5.5286]
[1734430571038,2.46,222.99,222.86,7.7724]
[1734430571231,2.46,222.99,222.86,5.5286]
[1734430571629,17.03178268,223.0,222.86,5.5286]
[1734430572334,17.03178268,223.0,222.86,11.5586]
[1734430572532,2.2428,222.97,222.91,2.2433]
[1734430572731,2.2428,222.97,222.92,2.46]
[1734430573139,2.2429,222.96,222.92,2.46]
[1734430573834,17.03178268,223.0,222.86,15.1986]
[1734430574228,17.03178268,222.96,222.86,15.1986]
[1734430574434,2.2431,222.93,222.86,15.1986]
[1734430574630,17.03178268,222.96,222.86,15.1986]
[1734430575541,2.2431,222.93,222.86,15.1986]
[1734430575738,17.03178268,222.96,222.86,15.1986]
[1734430576138,2.46,222.97,222.86,15.1986]
[1734430576640,2.2428,222.96,222.9,2.2434]
[1734430576940,17.03178268,223.0,222.91,2.46]
[1734430577337,2.243,222.95,222.91,2.46]
[1734430577941,2.243,222.95,222.9,2.46]
[1734430579745,2.2435,222.9,222.87,3.58]
[1734430580046,17.03178268,222.96,222.87,3.58]
[1734430580649,17.03178268,223.0,222.87,3.58]
[1734430581746,17.03178268,223.0,222.88,2.2435]
[1734430581945,17.03178268,223.0,222.87,3.58]
[1734430582544,17.03178268,222.96,222.87,6.04]
[1734430582942,17.03178268,222.96,222.87,3.58]
[1734430582943,2.46,222.95,222.87,3.58]
[1734430583140,2.2436,222.88,222.87,3.58]
[1734430584749,17.03178268,222.88,222.59,6.05103031]
[1734430584945,2.2448,222.77,222.65,2.46]
[1734430585248,2.46,222.8,222.65,2.46]
[1734430585449,2.2448,222.77,222.7,2.2454]
[1734430585651,2.2448,222.77,222.67,5.34967502]
[1734430586145,2.2448,222.77,222.75,13.27]
[1734430587549,17.03178268,222.86,222.75,13.27]
[1734430587747,2.46,222.85,222.75,13.27]
[1734430588143,2.2439,222.86,222.75,13.27]
[1734430588349,5.31517143,222.88,222.79,2.2445]
[1734430588549,5.31517143,222.88,222.76,1.73859]
[1734430588747,17.03178268,222.97,222.78,17.03178268]
[1734430588942,17.03178268,222.97,222.79,2.46]
[1734430588943,2.46,222.96,222.79,2.46]
[1734430589149,17.03178268,222.97,222.79,2.46]
[1734430589448,2.46,222.96,222.79,2.46]
[1734430589650,2.46,222.96,222.83,2.2441]
[1734430589950,2.2433,222.92,222.83,2.2441]
[1734430590149,5.47037456,222.94,222.78,17.03178268]
[1734430590450,5.47037456,222.94,222.79,4.7046]
[1734430590451,17.03178268,222.93,222.79,4.7046]
[1734430590852,5.47037456,222.94,222.79,2.46]
[1734430590853,2.2431,222.94,222.79,2.46]
[1734430591251,2.2431,222.94,222.85,2.2439]
[1734430591457,17.03178268,222.97,222.85,4.7039]
[1734430591458,2.2432,222.93,222.85,4.7039]
[1734430591854,2.2432,222.93,222.86,2.2438]
[1734430593156,4.4811,223.19,222.86,17.03178268]
[1734430593353,17.03178268,223.07,222.87,4.5229]
[1734430593554,17.03178268,223.07,222.9,17.03178268]
[1734430593852,17.03178268,223.11,222.94,17.03178268]
[1734430594053,2.46,223.14,222.94,17.03178268]
[1734430594254,2.46,223.15,222.98,17.03178268]
[1734430594450,4.701,223.15,223.06,2.2418]
[1734430594852,17.03178268,223.19,223.06,2.2418]
[1734430595055,2.241,223.15,223.06,2.2418]
[1734430595957,2.2409,223.16,223.07,2.2417]
[1734430596252,17.03178268,223.23,223.08,2.46]
[1734430596454,68.35178268,223.41,223.1,17.03178268]
[1734430596750,68.35178268,223.41,223.14,17.03178268]
[1734430596751,5.39755301,223.29,223.14,17.03178268]
[1734430596957,2.2397,223.28,223.18,2.2406]
[1734430597153,17.03178268,223.32,223.15,6.9169]
[1734430597355,2.46,223.37,223.18,17.03178268]
[1734430597555,17.03178268,223.4,223.18,17.03178268]
[1734430597858,17.03178268,223.36,223.15,6.9169]
[1734430598158,17.03178268,223.36,223.17,17.03178268]
[1734430598653,17.03178268,223.32,223.15,4.4569]
[1734430598857,19.49178268,223.32,223.16,2.46]
[1734430599151,17.03178268,223.28,223.17,2.46]
[1734430599351,2.46,223.27,223.09,17.03178268]
[1734430599557,2.2405,223.2,223.08,2.46]
[1734430599757,17.03178268,223.24,223.09,2.46]
[1734430600256,17.03178268,223.24,223.1,2.928]
[1734430601056,2.2406,223.19,223.1,2.928]
[1734430601955,27.59895049,223.2,223.1,1.457]
[1734430602161,27.59895049,223.2,223.1,11.72]
[1734430602356,2.2413,223.12,223.1,11.72]
[1734430603561,2.2411,223.14,223.1,11.72]
[1734430603859,30.11895049,223.16,223.1,11.72]
[1734430604058,32.91942509,223.2,223.1,11.72]
[1734430604361,35.43942509,223.2,223.1,11.72]
[1734430604862,2.2409,223.16,223.1,11.72]
[1734430605663,2.52,223.19,223.1,11.72]
[1734430606257,2.2408,223.17,223.1,11.72]
[1734430606560,2.52,223.19,223.1,11.72]
[1734430607259,27.59895049,223.16,223.1,15.3]
[1734430607459,2.2413,223.11,223.1,15.3]
[1734430607760,2.52,223.19,223.1,15.3]
[1734430607961,32.91942509,223.2,223.1,15.3]
[1734430607962,7.5609746,223.2,223.1,15.3]
[1734430608155,30.11895049,223.24,223.11,1.5397]
[1734430608757,2.2404,223.21,223.11,3.781]
[1734430608958,2.52,223.24,223.12,1.503]
[1734430609165,2.52,223.26,223.12,1.503]
[1734430609358,4.7599,223.26,223.15,2.2409]
[1734430609567,2.52,223.28,223.15,4.7609]
[1734430610258,2.2399,223.26,223.16,2.2408]
[1734430610459,51.28,223.39,223.17,27.59895049]
[1734430610460,27.59895049,223.34,223.17,27.59895049]
[1734430610661,2.239,223.35,223.21,27.59895049]
[1734430610962,2.239,223.35,223.26,2.2398]
[1734430611157,2.2389,223.36,223.27,3.0456]
[1734430611357,30.11895049,223.42,223.29,2.2395]
[1734430611763,2.2385,223.4,223.29,2.2395]
[1734430612262,2.52,223.42,223.29,27.59895049]
[1734430612463,2.52,223.45,223.29,27.59895049]
[1734430613056,7.97778741,223.49,223.33,27.59895049]
[1734430613263,7.97778741,223.49,223.34,3.9642]
[1734430613458,2.2383,223.42,223.34,3.9642]
[1734430613658,7.97778741,223.49,223.34,3.9642]
[1734430613859,5.45778741,223.49,223.34,3.9642]
[1734430614063,7.97778741,223.49,223.34,3.9642]
[1734430614458,2.5,223.53,223.37,27.59895049]
[1734430614665,5.26949052,223.52,223.37,27.59895049]
[1734430614857,27.59895049,223.46,223.12,200.47]
[1734430615064,27.59895049,223.42,223.28,1.5397]
[1734430615261,2.5,223.41,223.28,1.5397]
[1734430615664,2.2391,223.34,223.28,1.5397]
[1734430615964,2.5,223.41,223.28,1.5397]
[1734430617167,2.5,223.41,223.26,1.5863]
[1734430617168,27.59895049,223.38,223.26,1.5863]
[1734430617668,2.2396,223.29,223.26,1.5863]
[1734430618261,30.09895049,223.34,223.18,27.59895049]
[1734430618564,27.59895049,223.3,223.18,2.5]
[1734430618769,2.5,223.29,223.18,2.5]
[1734430618963,2.2398,223.27,223.18,2.5]
[1734430619159,2.5,223.32,223.18,30.09895049]
[1734430619358,27.59895049,223.38,223.22,27.59895049]
[1734430619562,2.5,223.37,223.23,3.9894]
[1734430619765,2.5,223.37,223.24,2.24]
[1734430619766,2.2392,223.33,223.24,2.24]
[1734430620060,2.5,223.39,223.25,1.5415]
[1734430620268,2.239,223.35,223.25,1.5415]
[1734430620463,27.59895049,223.42,223.25,1.5415]
[1734430620661,27.59895049,223.46,223.26,27.59895049]
[1734430620858,2.5,223.48,223.3,27.59895049]
[1734430621059,2.5,223.49,223.31,2.5]
[1734430621264,30.09895049,223.5,223.31,2.5]
[1734430621464,2.2381,223.44,223.35,2.2389]
[1734430621668,2.2381,223.44,223.36,3.9894]
[1734430622061,2.2381,223.44,223.37,1.4718]
[1734430622366,2.2381,223.43,223.37,1.4718]
[1734430623061,2.2378,223.47,223.37,3.7105]
[1734430623260,27.59895049,223.54,223.38,29.06805049]
[1734430623769,2.2378,223.46,223.38,31.30665049]
[1734430623966,2.2378,223.46,223.38,1.4691]
[1734430624168,2.238,223.44,223.38,1.4691]
[1734430624368,30.09895049,223.5,223.38,1.4691]
[1734430625271,2.2388,223.37,223.33,2.5]
[1734430625666,2.5,223.45,223.33,2.5]
[1734430626669,2.5,223.45,223.33,7.92230661]
[1734430627473,2.2384,223.4,223.33,7.92230661]
[1734430627673,2.5,223.45,223.33,7.92230661]
[1734430627875,2.5,223.45,223.29,1.4984]
[1734430628074,27.59895049,223.42,223.3,2.5]
[1734430628472,2.2393,223.31,223.29,1.4984]
[1734430629080,27.59895049,223.52,223.21,2.5]
[1734430629081,2.2398,223.27,223.21,2.5]
[1734430629378,27.59895049,223.34,223.21,2.5]
[1734430629575,2.2396,223.28,223.21,7.89287965]
[1734430630081,27.59895049,223.34,223.21,7.89287965]
[1734430630374,27.59895049,223.34,223.21,14.60287965]
[1734430630574,27.59895049,223.3,223.21,13.02]
[1734430630778,2.2401,223.24,223.21,13.02]
[1734430631475,30.19895049,223.3,223.21,13.02]
[1734430632580,30.19895049,223.34,223.21,13.02]
[1734430632783,5.41670404,223.33,223.21,13.02]
[1734430633573,51.22,223.45,223.21,13.02]
[1734430633574,27.59895049,223.38,223.21,13.02]
[1734430633774,51.22,223.45,223.21,13.02]
[1734430633775,27.59895049,223.42,223.22,27.59895049]
[1734430634074,5.33738731,223.4,223.22,27.59895049]
[1734430634574,5.33738731,223.4,223.23,3.58]
[1734430634773,5.33738731,223.4,223.24,2.6]
[1734430634981,27.59895049,223.38,223.24,2.6]
[1734430635576,5.33738731,223.4,223.24,2.6]
[1734430635976,5.33738731,223.4,223.26,27.59895049]
[1734430636371,27.59895049,223.42,223.27,1.4455]
[1734430636573,27.59895049,223.46,223.3,27.59895049]
[1734430636780,27.59895049,223.46,223.31,2.6]
[1734430637176,2.2382,223.42,223.35,2.2389]
[1734430637478,30.19895049,223.5,223.36,2.6]
[1734430637681,27.59895049,223.5,223.37,2.6]
[1734430637877,27.59895049,223.5,223.38,2.6]
[1734430638076,27.59895049,223.5,223.39,1.4862]
[1734430638283,2.238,223.45,223.39,1.4862]
[1734430639078,2.2379,223.46,223.39,3.7247]
[1734430639380,27.59895049,223.5,223.39,1.4862]
[1734430639583,2.2381,223.43,223.39,1.4862]
[1734430640380,2.6,223.51,223.3,27.59895049]
[1734430640381,27.59895049,223.46,223.3,27.59895049]
[1734430640685,7.88358097,223.51,223.31,4.60732399]
[1734430640686,27.59895049,223.42,223.31,4.60732399]
[1734430640881,2.2386,223.39,223.32,4.60732399]
[1734430641078,27.59895049,223.42,223.29,5.43080913]
[1734430641282,27.59895049,223.42,223.3,7.8130963]
[1734430641478,2.2386,223.39,223.31,7.21188161]
[1734430641685,5.28358097,223.51,223.32,4.61188161]
[1734430641686,2.6,223.45,223.32,4.61188161]
[1734430641880,27.59895049,223.42,223.33,4.61188161]
[1734430642080,2.2391,223.34,223.31,2.6]
[1734430642285,2.6,223.41,223.31,2.6]
[1734430642487,2.6,223.41,223.28,3.0088]
[1734430642788,2.6,223.41,223.29,4.6148943]
[1734430642988,2.6,223.41,223.3,4.61464128]
[1734430643184,27.59895049,223.42,223.28,3.0088]
[1734430643380,30.19895049,223.42,223.28,3.0088]
[1734430643586,27.59895049,223.38,223.29,4.61334281]
[1734430643785,2.6,223.37,223.28,3.0088]
[1734430644085,27.59895049,223.33,223.21,13.02]
[1734430644285,2.2395,223.29,223.23,9.08294729]
[1734430644486,27.59895049,223.33,223.23,9.08294729]
[1734430645078,27.59895049,223.37,223.23,9.08294729]
[1734430645583,27.59895049,223.37,223.24,4.61669264]
[1734430645789,27.59895049,223.37,223.25,2.6]
[1734430645988,2.6,223.4,223.28,2.2396]
[1734430646184,2.6,223.4,223.25,2.6]
[1734430646381,2.6,223.4,223.26,4.61576187]
[1734430646584,2.239,223.35,223.29,2.2395]
[1734430646786,2.6,223.4,223.25,2.6]
[1734430646787,27.59895049,223.37,223.25,2.6]
[1734430646983,27.59895049,223.37,223.23,3.58]
[1734430647190,27.59895049,223.33,223.23,3.58]
[1734430647388,2.6,223.32,223.23,3.58]
[1734430648488,2.2396,223.28,223.23,3.58]
[1734430648696,2.6,223.32,223.23,3.58]
[1734430649088,2.2392,223.33,223.23,3.58]
[1734430649795,2.2392,223.33,223.26,2.2397]
[1734430650495,2.6,223.32,223.23,3.58]
[1734430650889,2.24,223.24,223.23,3.58]
[1734430652293,2.2398,223.27,223.23,3.58]
[1734430652594,27.59895049,223.29,223.23,3.58]
[1734430652789,2.2395,223.3,223.23,3.58]
[1734430653094,27.59895049,223.29,223.23,3.58]
[1734430653288,2.24,223.25,223.23,3.58]
[1734430653994,27.59895049,223.29,223.23,3.58]
[1734430654687,2.24,223.24,223.23,3.58]
[1734430654991,4.84,223.24,223.23,3.58]
[1734430655493,2.24,223.24,223.23,3.58]
[1734430657499,2.2402,223.22,223.21,13.02]
[1734430657799,27.59895049,223.25,223.05,7.9008582]
[1734430657991,2.2413,223.12,223.05,7.9008582]
[1734430658592,2.2413,223.12,223.05,5.3008582]
[1734430658796,2.2413,223.12,223.06,3.58]
[1734430659895,2.2413,223.11,223.06,3.58]
[1734430660094,2.6,223.16,223.06,3.58]
[1734430660301,16.98784928,223.14,223.06,3.58]
[1734430660601,2.2417,223.08,223.06,3.58]
[1734430661188,2.2415,223.1,223.06,3.58]
[1734430661794,2.241,223.15,223.07,2.2417]
[1734430662001,2.62,223.17,223.07,2.2417]
[1734430662299,2.62,223.17,223.06,3.58]
[1734430663097,2.62,223.17,223.06,5.8218]
[1734430663292,16.98784928,223.18,223.06,3.58]
[1734430663694,2.62,223.17,223.06,3.58]
[1734430664095,22.44783285,223.22,223.06,3.58]
[1734430664295,2.62,223.21,223.06,3.58]
[1734430665097,2.2408,223.17,223.09,2.2415]
[1734430665293,22.44783285,223.22,223.06,3.58]
[1734430665497,2.62,223.2,223.06,3.58]
[1734430665691,16.98784928,223.18,223.06,3.58]
[1734430666096,2.2413,223.12,223.06,3.58]
[1734430666499,2.62,223.15,223.06,3.58]
[1734430666701,2.2413,223.12,223.06,3.58]
[1734430667607,2.62,223.15,223.06,3.58]
[1734430667608,16.98784928,223.14,223.06,3.58]
[1734430668307,2.2413,223.12,223.06,3.58]